fUSD/lending_fUSD_20240301
["ID","MTS","AMOUNT","RATE_DAILY","PERIOD"]
[316013515,1709325100739,-6000.0,0.000227,2]
[316013516,1709325100749,-4360.05709236,0.00022715,2]
[316013517,1709325100758,-150.66,0.0002274,2]
[316013518,1709325100767,-166.59,0.0002274,2]
[316013519,1709325100776,-204.7840934,0.00022769,2]
[316013520,1709325100786,-274.68709779,0.0002277,2]
[316013521,1709325100795,-1197.93357264,0.0002277,2]
[316013522,1709325100804,-199.05,0.00022776,2]
[316013523,1709325100813,-4360.05709236,0.00022777,2]
[316013524,1709325100822,-25540.90635269,0.0002279,2]
[316013525,1709325100832,-500.0,0.00022794,2]
[316013526,1709325100841,-500.0,0.00022794,2]
[316013527,1709325100852,-500.0,0.00022794,2]
[316013528,1709325100861,-500.0,0.00022794,2]
[316013529,1709325100871,-500.0,0.00022794,2]
[316013530,1709325100880,-500.0,0.00022794,2]
[316013531,1709325100889,-500.0,0.00022794,2]
[316013532,1709325100898,-500.0,0.00022794,2]
[316013533,1709325100908,-500.0,0.00022794,2]
[316013534,1709325100917,-500.0,0.00022794,2]
[316013535,1709325100926,-500.0,0.00022794,2]
[316013536,1709325100936,-500.0,0.00022794,2]
[316013537,1709325100945,-500.0,0.00022794,2]
[316013538,1709325100955,-500.0,0.00022794,2]
[316013539,1709325100965,-500.0,0.00022794,2]
[316013540,1709325100974,-500.0,0.00022794,2]
[316013541,1709325100983,-500.0,0.00022794,2]
[316013542,1709325100992,-500.0,0.00022794,2]
[316013543,1709325101005,-579.47,0.00022794,2]
[316013544,1709325101015,-500.0,0.00022794,2]
[316013545,1709325101024,-500.0,0.00022794,2]
[316013546,1709325101033,-500.0,0.00022794,2]
[316013547,1709325101046,-500.0,0.00022794,2]
[316013548,1709325101055,-500.0,0.00022794,2]
[316013549,1709325101065,-500.0,0.00022794,2]
[316013550,1709325101075,-532.65569335,0.00022794,2]
[316013551,1709325101084,-561.29763824,0.00022794,2]
[316013552,1709325101093,-500.0,0.00022794,2]
[316013553,1709325101103,-500.0,0.00022794,2]
[316013554,1709325101112,-500.0,0.00022794,2]
[316013555,1709325101122,-330.9917161,0.00022794,2]
[316013556,1709325101131,-600.79322832,0.00022794,2]
[316013557,1709325101140,-500.0,0.00022794,2]
[316013558,1709325101149,-500.0,0.00022794,2]
[316013559,1709325101159,-500.0,0.00022794,2]
[316013560,1709325101169,-500.0,0.00022794,2]
[316013561,1709325101178,-500.0,0.00022794,2]
[316013562,1709325101188,-500.0,0.00022794,2]
[316013563,1709325101197,-500.0,0.00022794,2]
[316013564,1709325101206,-500.0,0.00022794,2]
[316013565,1709325101217,-500.0,0.00022794,2]
[316013566,1709325101226,-500.0,0.00022794,2]
[316013567,1709325101235,-500.0,0.00022794,2]
[316013568,1709325101245,-500.0,0.00022794,2]
[316013569,1709325101254,-500.0,0.00022794,2]
[316013570,1709325101264,-500.0,0.00022794,2]
[316013571,1709325101274,-500.0,0.00022794,2]
[316013572,1709325101283,-500.0,0.00022794,2]
[316013573,1709325101293,-500.0,0.00022794,2]
[316013574,1709325101302,-500.0,0.00022794,2]
[316013575,1709325101312,-500.0,0.00022794,2]
[316013576,1709325101322,-1158.81,0.00022794,2]
[316013577,1709325101332,-500.0,0.00022794,2]
[316013578,1709325101341,-500.0,0.00022794,2]
[316013579,1709325101350,-500.0,0.00022794,2]
[316013580,1709325101359,-500.0,0.00022794,2]
[316013581,1709325101369,-500.0,0.00022794,2]
[316013582,1709325101378,-510.02,0.00022794,2]
[316013583,1709325101387,-500.0,0.00022794,2]
[316013584,1709325101396,-500.0,0.00022794,2]
[316013585,1709325101406,-500.0,0.00022794,2]
[316013586,1709325101415,-500.0,0.00022794,2]
[316013587,1709325101424,-500.0,0.00022794,2]
[316013588,1709325101434,-210.7892824,0.00022794,2]
[316013589,1709325101443,-500.0,0.00022794,2]
[316013590,1709325101452,-585.26,0.00022794,2]
[316013591,1709325101461,-500.0,0.00022794,2]
[316013592,1709325101473,-500.0,0.00022794,2]
[316013593,1709325101482,-500.0,0.00022794,2]
[316013594,1709325101491,-500.0,0.00022794,2]
[316013595,1709325101500,-500.0,0.00022794,2]
[316013596,1709325101509,-582.8,0.00022794,2]
[316013597,1709325101518,-500.0,0.00022794,2]
[316013598,1709325101527,-1096.14,0.00022794,2]
[316013599,1709325101536,-500.0,0.00022794,2]
[316013600,1709325101545,-500.0,0.00022794,2]
[316013601,1709325101554,-500.0,0.00022794,2]
[316013602,1709325101563,-500.0,0.00022794,2]
[316013603,1709325101572,-500.0,0.00022794,2]
[316013604,1709325101581,-1058.72,0.00022794,2]
[316013605,1709325101590,-1249.03,0.00022794,2]
[316013606,1709325101599,-1276.8,0.00022794,2]
[316013607,1709325101609,-936.62,0.00022794,2]
[316013608,1709325101618,-500.0,0.00022794,2]
[316013609,1709325101627,-500.0,0.00022794,2]
[316013610,1709325101636,-611.3,0.00022794,2]
[316013611,1709325101645,-757.45,0.00022794,2]
[316013612,1709325101654,-500.0,0.00022794,2]
[316013613,1709325101663,-500.0,0.00022794,2]
[316013614,1709325101672,-1137.5,0.00022794,2]
[316013615,1709325101681,-500.0,0.00022794,2]
[316013616,1709325101691,-1015.22,0.00022794,2]
[316013617,1709325101700,-1087.44,0.00022794,2]
[316013618,1709325101709,-660.66,0.00022794,2]
[316013619,1709325101721,-721.12,0.00022794,2]
[316013620,1709325101730,-500.0,0.00022794,2]
[316013621,1709325101739,-772.6,0.00022794,2]
[316013622,1709325101748,-681.29,0.00022794,2]
[316013623,1709325101757,-803.95,0.00022794,2]
[316013624,1709325101767,-500.0,0.00022794,2]
[316013625,1709325101776,-500.0,0.00022794,2]
[316013626,1709325101785,-500.0,0.00022794,2]
[316013627,1709325101794,-500.0,0.00022794,2]
[316013628,1709325101803,-500.0,0.00022794,2]
[316013629,1709325101812,-500.0,0.00022794,2]
[316013630,1709325101821,-805.74,0.00022794,2]
[316013631,1709325101832,-500.0,0.00022794,2]
[316013632,1709325101841,-762.15,0.00022794,2]
[316013633,1709325101851,-609.16,0.00022794,2]
[316013634,1709325101860,-500.0,0.00022794,2]
[316013635,1709325101869,-848.53,0.00022794,2]
[316013636,1709325101878,-500.0,0.00022794,2]
[316013637,1709325101887,-500.0,0.00022794,2]
[316013638,1709325101897,-500.0,0.00022794,2]
[316013639,1709325101906,-500.0,0.00022794,2]
[316013640,1709325101915,-500.0,0.00022794,2]
[316013641,1709325101926,-507.2,0.00022794,2]
[316013642,1709325101935,-1065.74,0.00022794,2]
[316013643,1709325101944,-1592.13,0.00022794,2]
[316013644,1709325101953,-500.0,0.00022794,2]
[316013645,1709325101962,-500.0,0.00022794,2]
[316013646,1709325101973,-865.42,0.00022794,2]
[316013647,1709325101982,-500.0,0.00022794,2]
[316013648,1709325101994,-826.68,0.00022794,2]
[316013649,1709325102010,-182.78,0.00022794,2]
[316013650,1709325102019,-500.0,0.00022794,2]
[316013651,1709325102029,-500.0,0.00022794,2]
[316013652,1709325102037,-500.0,0.00022794,2]
[316013653,1709325102047,-553.43,0.00022794,2]
[316013654,1709325102056,-1042.29,0.00022794,2]
[316013655,1709325102066,-500.0,0.00022794,2]
[316013656,1709325102075,-500.0,0.00022794,2]
[316013657,1709325102085,-500.0,0.00022794,2]
[316013658,1709325102094,-500.0,0.00022794,2]
[316013659,1709325102104,-512.5,0.00022794,2]
[316013660,1709325102113,-500.0,0.00022794,2]
[316013661,1709325102123,-500.0,0.00022794,2]
[316013662,1709325102133,-413.68036798,0.00022794,2]
[316013663,1709325102142,-500.0,0.00022794,2]
[316013664,1709325102151,-500.0,0.00022794,2]
[316013665,1709325102160,-359.86,0.00022794,2]
[316013666,1709325102170,-500.0,0.00022794,2]
[316013667,1709325102180,-1195.6,0.00022794,2]
[316013668,1709325102189,-390.13,0.00022794,2]
[316013669,1709325102199,-500.0,0.00022794,2]
[316013670,1709325102209,-500.0,0.00022794,2]
[316013671,1709325102220,-500.0,0.00022794,2]
[316013672,1709325102229,-802.71,0.00022794,2]
[316013673,1709325102239,-568.06929985,0.00022794,2]
[316013674,1709325102248,-500.0,0.00022794,2]
[316013675,1709325102258,-610.89324992,0.00022794,2]
[316013676,1709325102268,-500.0,0.00022794,2]
[316013677,1709325102277,-500.0,0.00022794,2]
[316013678,1709325102286,-500.0,0.00022794,2]
[316013679,1709325102296,-218.7,0.00022794,2]
[316013680,1709325102305,-477.87459689,0.00022794,2]
[316013681,1709325102314,-500.0,0.00022794,2]
[316013682,1709325102323,-500.0,0.00022794,2]
[316013683,1709325102333,-500.0,0.00022794,2]
[316013684,1709325102343,-500.0,0.00022794,2]
[316013685,1709325102352,-500.0,0.00022794,2]
[316013686,1709325102361,-500.0,0.00022794,2]
[316013687,1709325102371,-740.6,0.00022794,2]
[316013688,1709325102380,-876.19,0.00022794,2]
[316013689,1709325102389,-676.42,0.00022794,2]
[316013690,1709325102398,-491.96,0.00022794,2]
[316013691,1709325102407,-500.0,0.00022794,2]
[316013692,1709325102416,-500.0,0.00022794,2]
[316013693,1709325102425,-500.0,0.00022794,2]
[316013694,1709325102434,-514.56,0.00022794,2]
[316013695,1709325102443,-769.11,0.00022794,2]
[316013696,1709325102453,-595.86,0.00022794,2]
[316013697,1709325102462,-500.0,0.00022794,2]
[316013698,1709325102473,-294.81336586,0.00022794,2]
[316013699,1709325102483,-500.0,0.00022794,2]
[316013700,1709325102492,-515.51,0.00022794,2]
[316013701,1709325102502,-500.0,0.00022794,2]
[316013702,1709325102511,-500.0,0.00022794,2]
[316013703,1709325102520,-500.0,0.00022794,2]
[316013704,1709325102529,-150.0,0.00022794,2]
[316013705,1709325102538,-1494.08,0.00022794,2]
[316013706,1709325102546,-500.0,0.00022794,2]
[316013707,1709325102555,-648.67,0.00022794,2]
[316013708,1709325102565,-325.35,0.00022794,2]
[316013709,1709325102574,-500.0,0.00022794,2]
[316013710,1709325102583,-500.0,0.00022794,2]
[316013711,1709325102593,-500.0,0.00022794,2]
[316013712,1709325102602,-1095.13,0.00022794,2]
[316013713,1709325102611,-500.0,0.00022794,2]
[316013714,1709325102621,-500.0,0.00022794,2]
[316013715,1709325102630,-500.0,0.00022794,2]
[316013716,1709325102640,-576.13,0.00022794,2]
[316013717,1709325102649,-793.28,0.00022794,2]
[316013718,1709325102658,-649.5,0.00022794,2]
[316013719,1709325102667,-500.0,0.00022794,2]
[316013720,1709325102676,-500.0,0.00022794,2]
[316013721,1709325102685,-807.39,0.00022794,2]
[316013722,1709325102694,-777.74,0.00022794,2]
[316013723,1709325102704,-500.0,0.00022794,2]
[316013724,1709325102713,-500.0,0.00022794,2]
[316013725,1709325102724,-5832.94,0.00022794,2]
[316013726,1709325102734,-500.0,0.00022794,2]
[316013727,1709325102743,-2556.17,0.00022794,2]
[316013728,1709325102752,-500.0,0.00022794,2]
[316013729,1709325102762,-500.0,0.00022794,2]
[316013730,1709325102771,-630.96,0.00022794,2]
[316013731,1709325102782,-500.0,0.00022794,2]
[316013732,1709325102791,-500.0,0.00022794,2]
[316013733,1709325102801,-2541.7,0.00022794,2]
[316013734,1709325102811,-717.66,0.00022794,2]
[316013735,1709325102820,-500.0,0.00022794,2]
[316013736,1709325102829,-1190.85,0.00022794,2]
[316013737,1709325102839,-500.0,0.00022794,2]
[316013738,1709325102849,-1257.43,0.00022794,2]
[316013739,1709325102858,-500.0,0.00022794,2]
[316013740,1709325102868,-1933.92,0.00022794,2]
[316013741,1709325102877,-500.0,0.00022794,2]
[316013742,1709325102887,-6685.34,0.00022794,2]
[316013743,1709325102896,-500.0,0.00022794,2]
[316013744,1709325102905,-798.45,0.00022794,2]
[316013745,1709325102914,-500.0,0.00022794,2]
[316013746,1709325102925,-500.0,0.00022794,2]
[316013747,1709325102934,-833.2,0.00022794,2]
[316013748,1709325102944,-500.0,0.00022794,2]
[316013749,1709325102953,-13127.88,0.00022794,2]
[316013750,1709325102962,-4843.16,0.00022794,2]
[316013751,1709325102973,-739.55,0.00022794,2]
[316013752,1709325102982,-500.0,0.00022794,2]
[316013753,1709325102992,-870.9,0.00022794,2]
[316013754,1709325103001,-21180.03,0.00022794,2]
[316013755,1709325103013,-2351.69,0.00022794,2]
[316013756,1709325103023,-500.0,0.00022794,2]
[316013757,1709325103032,-23347.63,0.00022794,2]
[316013758,1709325103043,-500.0,0.00022794,2]
[316013759,1709325103053,-4956.68,0.00022794,2]
[316013760,1709325103063,-500.0,0.00022794,2]
[316013761,1709325103072,-1558.45,0.00022794,2]
[316013762,1709325103083,-500.0,0.00022794,2]
[316013763,1709325103092,-3125.66,0.00022794,2]
[316013764,1709325103274,-667.12,0.00022794,2]
[316013765,1709325103284,-2738.18,0.00022794,2]
[316013766,1709325103294,-503.50666414,0.00022794,2]
[316013767,1709325103303,-500.0,0.00022794,2]
[316013768,1709325103313,-833.39,0.00022794,2]
[316013769,1709325103322,-500.0,0.00022794,2]
[316013770,1709325103332,-2229.45,0.00022794,2]
[316013771,1709325103341,-610.29,0.00022794,2]
[316013772,1709325103351,-1678.54,0.00022794,2]
[316013773,1709325103360,-2098.48,0.00022794,2]
[316013774,1709325103370,-503.81,0.00022794,2]
[316013775,1709325103379,-786.34,0.00022794,2]
[316013776,1709325103388,-2418.44,0.00022794,2]
[316013777,1709325103397,-1899.02,0.00022794,2]
[316013778,1709325103407,-500.0,0.00022794,2]
[316013779,1709325103417,-22491.46,0.00022794,2]
[316013780,1709325103427,-1323.61,0.00022794,2]
[316013781,1709325103436,-983.93,0.00022794,2]
[316013782,1709325103446,-1814.42,0.00022794,2]
[316013783,1709325103455,-500.0,0.00022794,2]
[316013784,1709325103466,-1115.97,0.00022794,2]
[316013785,1709325103475,-1675.44,0.00022794,2]
[316013786,1709325103486,-767.44,0.00022794,2]
[316013787,1709325103495,-500.0,0.00022794,2]
[316013788,1709325103505,-896.73,0.00022794,2]
[316013789,1709325103515,-802.5,0.00022794,2]
[316013790,1709325103525,-500.0,0.00022794,2]
[316013791,1709325103535,-1440.38,0.00022794,2]
[316013792,1709325103546,-1523.08,0.00022794,2]
[316013793,1709325103557,-503.18,0.00022794,2]
[316013794,1709325103568,-1165.62,0.00022794,2]
[316013795,1709325103579,-601.85,0.00022794,2]
[316013796,1709325103589,-1246.8,0.00022794,2]
[316013797,1709325103599,-539.77,0.00022794,2]
[316013798,1709325103609,-1621.23,0.00022794,2]
[316013799,1709325103619,-1237.56,0.00022794,2]
[316013800,1709325103629,-500.0,0.00022794,2]
[316013801,1709325103639,-1145.09,0.00022794,2]
[316013802,1709325103649,-3124.61,0.00022794,2]
[316013803,1709325103659,-500.0,0.00022794,2]
[316013804,1709325103668,-1329.17,0.00022794,2]
[316013805,1709325103678,-1000.45,0.00022794,2]
[316013806,1709325103688,-500.0,0.00022794,2]
[316013807,1709325103697,-500.0,0.00022794,2]
[316013808,1709325103708,-3328.11,0.00022794,2]
[316013809,1709325103720,-1846.84,0.00022794,2]
[316013810,1709325103729,-600.81,0.00022794,2]
[316013811,1709325103739,-1629.87,0.00022794,2]
[316013812,1709325103749,-500.0,0.00022794,2]
[316013813,1709325103759,-1049.82,0.00022794,2]
[316013814,1709325103768,-1099.37,0.00022794,2]
[316013815,1709325103778,-530.71,0.00022794,2]
[316013816,1709325103787,-841.32,0.00022794,2]
[316013817,1709325103797,-668.88,0.00022794,2]
[316013818,1709325103806,-796.92,0.00022794,2]
[316013819,1709325103815,-500.0,0.00022794,2]
[316013820,1709325103825,-531.12,0.00022794,2]
[316013821,1709325103835,-2334.83,0.00022794,2]
[316013822,1709325103844,-816.07,0.00022794,2]
[316013823,1709325103854,-897.19,0.00022794,2]
[316013824,1709325103863,-3575.44,0.00022794,2]
[316013825,1709325103873,-500.0,0.00022794,2]
[316013826,1709325103882,-1761.64,0.00022794,2]
[316013827,1709325103892,-1692.3,0.00022794,2]
[316013828,1709325103901,-500.0,0.00022794,2]
[316013829,1709325103911,-628.25,0.00022794,2]
[316013830,1709325103922,-1144.26,0.00022794,2]
[316013831,1709325103931,-1413.89,0.00022794,2]
[316013832,1709325103941,-1309.85,0.00022794,2]
[316013833,1709325103950,-2454.74,0.00022794,2]
[316013834,1709325103959,-500.0,0.00022794,2]
[316013835,1709325103970,-500.0,0.00022794,2]
[316013836,1709325103979,-1110.9,0.00022794,2]
[316013837,1709325103989,-541.55,0.00022794,2]
[316013838,1709325103999,-697.92,0.00022794,2]
[316013839,1709325104009,-2314.14,0.00022794,2]
[316013840,1709325104020,-689.43,0.00022794,2]
[316013841,1709325104030,-898.59,0.00022794,2]
[316013842,1709325104039,-705.17,0.00022794,2]
[316013843,1709325104048,-547.49,0.00022794,2]
[316013844,1709325104057,-1018.24,0.00022794,2]
[316013845,1709325104067,-500.0,0.00022794,2]
[316013846,1709325104076,-645.07,0.00022794,2]
[316013847,1709325104086,-1138.84,0.00022794,2]
[316013848,1709325104097,-13496.9,0.00022794,2]
[316013849,1709325104106,-500.0,0.00022794,2]
[316013850,1709325104115,-500.0,0.00022794,2]
[316013851,1709325104124,-771.59,0.00022794,2]
[316013852,1709325104134,-1245.99,0.00022794,2]
[316013853,1709325104143,-4551.14,0.00022794,2]
[316013854,1709325104152,-2194.49,0.00022794,2]
[316013855,1709325104162,-1300.41,0.00022794,2]
[316013856,1709325104171,-858.27,0.00022794,2]
[316013857,1709325104180,-1006.76,0.00022794,2]
[316013858,1709325104190,-797.83,0.00022794,2]
[316013859,1709325104199,-648.54,0.00022794,2]
[316013860,1709325104209,-500.0,0.00022794,2]
[316013861,1709325104219,-3937.49,0.00022794,2]
[316013862,1709325104229,-1738.03,0.00022794,2]
[316013863,1709325104238,-1746.33,0.00022794,2]
[316013864,1709325104248,-1501.28,0.00022794,2]
[316013865,1709325104258,-822.79,0.00022794,2]
[316013866,1709325104267,-2615.6,0.00022794,2]
[316013867,1709325104277,-500.0,0.00022794,2]
[316013868,1709325104287,-909.65,0.00022794,2]
[316013869,1709325104296,-500.0,0.00022794,2]
[316013870,1709325104306,-500.0,0.00022794,2]
[316013871,1709325104315,-1731.17,0.00022794,2]
[316013872,1709325104325,-1095.16,0.00022794,2]
[316013873,1709325104334,-3436.44,0.00022794,2]
[316013874,1709325104344,-796.3,0.00022794,2]
[316013875,1709325104354,-605.08,0.00022794,2]
[316013876,1709325104364,-1719.11,0.00022794,2]
[316013877,1709325104373,-695.81,0.00022794,2]
[316013878,1709325104383,-1649.56,0.00022794,2]
[316013879,1709325104392,-500.0,0.00022794,2]
[316013880,1709325104401,-695.1,0.00022794,2]
[316013881,1709325104410,-1849.33,0.00022794,2]
[316013882,1709325104420,-500.0,0.00022794,2]
[316013883,1709325104430,-500.0,0.00022794,2]
[316013884,1709325104439,-596.04,0.00022794,2]
[316013885,1709325104449,-802.09,0.00022794,2]
[316013886,1709325104458,-1408.66,0.00022794,2]
[316013887,1709325104469,-914.91,0.00022794,2]
[316013888,1709325104478,-1096.97,0.00022794,2]
[316013889,1709325104487,-3156.86,0.00022794,2]
[316013890,1709325104497,-500.0,0.00022794,2]
[316013891,1709325104506,-2515.07,0.00022794,2]
[316013892,1709325104516,-576.12,0.00022794,2]
[316013893,1709325104525,-1405.35,0.00022794,2]
[316013894,1709325104535,-500.0,0.00022794,2]
[316013895,1709325104544,-571.01,0.00022794,2]
[316013896,1709325104553,-829.65,0.00022794,2]
[316013897,1709325104562,-500.0,0.00022794,2]
[316013898,1709325104571,-1280.88,0.00022794,2]
[316013899,1709325104581,-2102.13,0.00022794,2]
[316013900,1709325104591,-1130.38,0.00022794,2]
[316013901,1709325104601,-4965.87,0.00022794,2]
[316013902,1709325104610,-500.0,0.00022794,2]
[316013903,1709325104619,-9922.92,0.00022794,2]
[316013904,1709325104628,-500.0,0.00022794,2]
[316013905,1709325104637,-571.68337366,0.00022794,2]
[316013906,1709325104647,-500.0,0.00022794,2]
[316013907,1709325104656,-798.06,0.00022794,2]
[316013908,1709325104665,-730.32,0.00022794,2]
[316013909,1709325104674,-520.32,0.00022794,2]
[316013910,1709325104684,-500.0,0.00022794,2]
[316013911,1709325104693,-3463.0,0.00022794,2]
[316013912,1709325104703,-500.0,0.00022794,2]
[316013913,1709325104713,-500.0,0.00022794,2]
[316013914,1709325104722,-1879.42,0.00022794,2]
[316013915,1709325104732,-928.45,0.00022794,2]
[316013916,1709325104741,-5669.44,0.00022794,2]
[316013917,1709325104750,-1230.85,0.00022794,2]
[316013918,1709325104760,-500.0,0.00022794,2]
[316013919,1709325104769,-500.0,0.00022794,2]
[316013920,1709325104778,-500.0,0.00022794,2]
[316013921,1709325104788,-2980.76,0.00022794,2]
[316013922,1709325104797,-1281.68,0.00022794,2]
[316013923,1709325104807,-500.0,0.00022794,2]
[316013924,1709325104816,-500.0,0.00022794,2]
[316013925,1709325104825,-791.17,0.00022794,2]
[316013926,1709325104834,-8137.03,0.00022794,2]
[316013927,1709325104844,-5463.14,0.00022794,2]
[316013928,1709325104853,-726.54,0.00022794,2]
[316013929,1709325104861,-500.0,0.00022794,2]
[316013930,1709325104870,-500.0,0.00022794,2]
[316013931,1709325104880,-9818.2,0.00022794,2]
[316013932,1709325104888,-988.29,0.00022794,2]
[316013933,1709325104898,-500.0,0.00022794,2]
[316013934,1709325104907,-500.0,0.00022794,2]
[316013935,1709325104916,-983.46,0.00022794,2]
[316013936,1709325104926,-2607.72,0.00022794,2]
[316013937,1709325104935,-500.0,0.00022794,2]
[316013938,1709325104945,-635.35,0.00022794,2]
[316013939,1709325104954,-4384.09,0.00022794,2]
[316013940,1709325104964,-7772.36,0.00022794,2]
[316013941,1709325104974,-500.0,0.00022794,2]
[316013942,1709325104983,-757.05,0.00022794,2]
[316013943,1709325104994,-500.0,0.00022794,2]
[316013944,1709325105006,-842.18,0.00022794,2]
[316013945,1709325105016,-825.49,0.00022794,2]
[316013946,1709325105025,-500.0,0.00022794,2]
[316013947,1709325105035,-12050.28,0.00022794,2]
[316013948,1709325105045,-500.0,0.00022794,2]
[316013949,1709325105054,-500.0,0.00022794,2]
[316013950,1709325105064,-1346.15,0.00022794,2]
[316013951,1709325105073,-1744.39,0.00022794,2]
[316013952,1709325105083,-1430.59,0.00022794,2]
[316013953,1709325105094,-44321.55678031,0.00022798,2]
[316013954,1709325105104,-194.07007002,0.00022798,2]
[316013955,1709325105113,-42041.64127032,0.00022799,2]
[316013956,1709325105123,-42041.6412703,0.00022799,2]
[316013957,1709325105132,-42041.6412703,0.00022799,2]
[316013958,1709325105142,-42041.6412703,0.00022799,2]
[316013959,1709325105151,-42041.6412703,0.00022799,2]
[316013960,1709325105160,-42041.6412703,0.00022799,2]
[316013961,1709325105169,-42041.6412703,0.00022799,2]
[316013962,1709325105179,-42041.6412703,0.00022799,2]
[316013963,1709325105189,-42041.6412703,0.00022799,2]
[316013964,1709325105198,-2532.50548767,0.00022799,2]
[316013965,1709325105207,-2532.5054876,0.00022799,2]
[316013966,1709325105217,-2532.5054876,0.00022799,2]
[316013967,1709325105226,-2532.5054876,0.00022799,2]
[316013968,1709325105235,-2532.5054876,0.00022799,2]
[316013969,1709325105245,-2532.5054876,0.00022799,2]
[316013970,1709325105254,-2532.5054876,0.00022799,2]
[316013971,1709325105263,-2532.5054876,0.00022799,2]
[316013972,1709325105273,-2532.5054876,0.00022799,2]
[316013973,1709325105282,-2532.5054876,0.00022799,2]
[316013974,1709325105291,-88225.27103547,0.000228,2]
[316013975,1709325105300,-42041.6412703,0.00022804,2]
[316013976,1709325105309,-349.0,0.00022805,2]
[316013977,1709325105319,-200.0,0.00022815,2]
[316013978,1709325105328,-800.0,0.00022815,2]
[316013979,1709325105338,-500.0,0.00022815,2]
[316013980,1709325105347,-4360.05709236,0.00022838,2]
[316013981,1709325105356,-1010.6423,0.00022885,2]
[316013982,1709325105366,-500.0,0.00022885,2]
[316013983,1709325105375,-500.0,0.00022885,2]
[316013984,1709325105384,-500.0,0.00022885,2]
[316013985,1709325105393,-500.0,0.00022885,2]
[316013986,1709325105402,-500.0,0.00022885,2]
[316013987,1709325105412,-500.0,0.00022885,2]
[316013988,1709325105421,-500.0,0.00022885,2]
[316013989,1709325105430,-528.2935,0.00022885,2]
[316013990,1709325105439,-199.05,0.00022887,2]
[316013991,1709325105448,-1000.0,0.00022899,2]
[316013992,1709325105457,-11247.09,0.000229,2]
[316013993,1709325105466,-500.0,0.000229,2]
[316013994,1709325105476,-2506.60051504,0.000229,5]
[316013995,1709325105486,-953.57614251,0.000229,2]
[316013996,1709325105495,-2202.31631669,0.000229,2]
[316013997,1709325105504,-3000.0,0.000229,2]
[316013998,1709325105513,-4360.05709236,0.000229,2]
[316013999,1709325105522,-11160.52208564,0.000229,2]
[316014000,1709325105531,-11160.52208557,0.000229,2]
[316014001,1709325105541,-11160.52208557,0.000229,2]
[316014002,1709325105550,-11160.52208557,0.000229,2]
[316014003,1709325105559,-11160.52208557,0.000229,2]
[316014004,1709325105569,-11160.52208557,0.000229,2]
[316014005,1709325105578,-11160.52208557,0.000229,2]
[316014006,1709325105587,-11160.52208557,0.000229,2]
[316014007,1709325105596,-11160.52208557,0.000229,2]
[316014008,1709325105605,-11160.52208557,0.000229,2]
[316014009,1709325105614,-154.56170001,0.000229,2]
[316014010,1709325105623,-154.56169984,0.000229,2]
[316014011,1709325105632,-154.56169984,0.000229,2]
[316014012,1709325105642,-154.56169984,0.000229,2]
[316014013,1709325105651,-154.56169984,0.000229,2]
[316014014,1709325105660,-154.56169984,0.000229,2]